fUST/lending_fUST_20240820
["ID","MTS","AMOUNT","RATE_DAILY","PERIOD"]
[335364732,1724161844632,-500.0,0.00016438,2]
[335364733,1724161844641,-502.79483169,0.00016438,2]
[335364734,1724161844651,-506.49814925,0.00016438,2]
[335364735,1724161844660,-500.0,0.00016438,2]
[335364736,1724161844670,-500.0,0.00016438,2]
[335364737,1724161844680,-500.0,0.00016438,2]
[335364738,1724161844689,-500.0,0.00016438,2]
[335364739,1724161844699,-521.51881635,0.00016438,2]
[335364740,1724161844708,-506.19174413,0.00016438,2]
[335364741,1724161844717,-500.0,0.00016438,2]
[335364742,1724161844726,-500.0,0.00016438,2]
[335364743,1724161844737,-507.616974,0.00016438,2]
[335364744,1724161844746,-500.0,0.00016438,2]
[335364745,1724161844756,-501.2531801,0.00016438,2]
[335364746,1724161844765,-302.36856451,0.00016438,2]
[335364747,1724161844774,-500.0,0.00016438,2]
[335364748,1724161844784,-504.93675072,0.00016438,2]
[335364749,1724161844793,-527.69639395,0.00016438,2]
[335364750,1724161844802,-500.94613166,0.00016438,2]
[335364751,1724161844811,-629.08,0.00016438,2]
[335364752,1724161844821,-500.0,0.00016438,2]
[335364753,1724161844832,-500.0,0.00016438,2]
[335364754,1724161844843,-500.0,0.00016438,2]
[335364755,1724161844852,-500.0,0.00016438,2]
[335364756,1724161844861,-500.0,0.00016438,2]
[335364757,1724161844870,-500.0,0.00016438,2]
[335364758,1724161844879,-500.0,0.00016438,2]
[335364759,1724161844888,-504.0261039,0.00016438,2]
[335364760,1724161844898,-501.24069336,0.00016438,2]
[335364761,1724161844907,-500.0,0.00016438,2]
[335364762,1724161844917,-500.0,0.00016438,2]
[335364763,1724161844926,-442.06704651,0.00016438,2]
[335364764,1724161844936,-209.86912806,0.00016438,2]
[335364765,1724161844945,-500.0,0.00016438,2]
[335364766,1724161844955,-500.0,0.00016438,2]
[335364767,1724161844964,-500.0,0.00016438,2]
[335364768,1724161844974,-499.65774743,0.00016438,2]
[335364769,1724161844983,-507.27484819,0.00016438,2]
[335364770,1724161844993,-500.0,0.00016438,2]
[335364771,1724161845003,-505.10556489,0.00016438,2]
[335364772,1724161845013,-500.0,0.00016438,2]
[335364773,1724161845022,-500.0,0.00016438,2]
[335364774,1724161845031,-500.0,0.00016438,2]
[335364775,1724161845041,-500.0,0.00016438,2]
[335364776,1724161845050,-500.0,0.00016438,2]
[335364777,1724161845060,-194.73111635,0.00016438,2]
[335364778,1724161845070,-500.0,0.00016438,2]
[335364779,1724161845079,-629.97,0.00016438,2]
[335364780,1724161845090,-500.0,0.00016438,2]
[335364781,1724161845099,-500.0,0.00016438,2]
[335364782,1724161845110,-528.67708808,0.00016438,2]
[335364783,1724161845121,-500.0,0.00016438,2]
[335364784,1724161845130,-500.0,0.00016438,2]
[335364785,1724161845140,-502.67785879,0.00016438,2]
[335364786,1724161845149,-500.0,0.00016438,2]
[335364787,1724161845159,-500.0,0.00016438,2]
[335364788,1724161845168,-500.0,0.00016438,2]
[335364789,1724161845177,-517.36251035,0.00016438,2]
[335364790,1724161845187,-515.35705967,0.00016438,2]
[335364791,1724161845196,-500.0,0.00016438,2]
[335364792,1724161845205,-500.0,0.00016438,2]
[335364793,1724161845215,-500.36598369,0.00016438,2]
[335364794,1724161845225,-500.0,0.00016438,2]
[335364795,1724161845234,-500.0,0.00016438,2]
[335364796,1724161845244,-2723.46,0.00016438,2]
[335364797,1724161845253,-2723.46,0.00016438,2]
[335364798,1724161845263,-2723.46,0.00016438,2]
[335364799,1724161845273,-2723.46,0.00016438,2]
[335364800,1724161845283,-2723.46,0.00016438,2]
[335364801,1724161845293,-2723.46,0.00016438,2]
[335364802,1724161845302,-2723.46,0.00016438,2]
[335364803,1724161845314,-500.0,0.00016438,2]
[335364804,1724161845323,-2723.46,0.00016438,2]
[335364805,1724161845334,-2723.46,0.00016438,2]
[335364806,1724161845343,-2723.46,0.00016438,2]
[335364807,1724161845354,-2723.46,0.00016438,2]
[335364808,1724161845363,-2723.46,0.00016438,2]
[335364809,1724161845372,-500.0,0.00016438,2]
[335364810,1724161845382,-2723.46,0.00016438,2]
[335364811,1724161845392,-2723.46,0.00016438,2]
[335364812,1724161845401,-2723.46,0.00016438,2]
[335364813,1724161845414,-2723.46,0.00016438,2]
[335364814,1724161845425,-2723.46,0.00016438,2]
[335364815,1724161845435,-2723.46,0.00016438,2]
[335364816,1724161845444,-500.0,0.00016438,2]
[335364817,1724161845455,-2723.46,0.00016438,2]
[335364818,1724161845464,-4747.67,0.00016438,2]
[335364819,1724161845474,-2723.46,0.00016438,2]
[335364820,1724161845485,-2723.46,0.00016438,2]
[335364821,1724161845495,-2723.46,0.00016438,2]
[335364822,1724161845505,-2723.46,0.00016438,2]
[335364823,1724161845514,-2723.69511422,0.00016438,2]
[335364824,1724161845524,-500.0,0.00016438,2]
[335364825,1724161845533,-500.0,0.00016438,2]
[335364826,1724161845543,-501.32968299,0.00016438,2]
[335364827,1724161845553,-500.0,0.00016438,2]
[335364828,1724161845562,-500.0,0.00016438,2]
[335364829,1724161845571,-500.0,0.00016438,2]
[335364830,1724161845580,-553.71,0.00016438,2]
[335364831,1724161845590,-780.17,0.00016438,2]
[335364832,1724161845600,-500.0,0.00016438,2]
[335364833,1724161845609,-150.112236,0.000166,2]
[335364834,1724161845618,-5117.28593988,0.00016697,2]
[335364835,1724161845628,-286.52501568,0.00016712,2]
[335364836,1724161845637,-500.0,0.00016712,2]
[335364837,1724161845647,-500.0,0.00016712,2]
[335364838,1724161845656,-500.0,0.00016712,2]
[335364839,1724161845665,-500.0,0.00016712,2]
[335364840,1724161845675,-500.0,0.00016712,2]
[335364841,1724161845684,-158.59978058,0.00016712,2]
[335364843,1724161845803,-500.0,0.00016712,2]
[335364844,1724161845813,-500.0,0.00016712,2]
[335364845,1724161845823,-500.0,0.00016712,2]
[335364846,1724161845832,-500.0,0.00016712,2]
[335364847,1724161845842,-500.0,0.00016712,2]
[335364848,1724161845851,-509.04297039,0.00016712,2]
[335364849,1724161845861,-500.0,0.00016712,2]
[335364850,1724161845870,-480.30238347,0.00016712,2]
[335364851,1724161845880,-462.83761311,0.00016712,2]
[335364852,1724161845889,-500.0,0.00016712,2]
[335364853,1724161845899,-500.0,0.00016712,2]
[335364854,1724161845909,-500.0,0.00016712,2]
[335364855,1724161845919,-507.17862359,0.00016712,2]
[335364857,1724161845928,-252.79,0.00016712,2]
[335364859,1724161845938,-500.0,0.00016712,2]
[335364860,1724161845947,-500.0,0.00016712,2]
[335364862,1724161845957,-500.0,0.00016712,2]
[335364863,1724161845966,-513.96222773,0.00016712,2]
[335364865,1724161845976,-500.0,0.00016712,2]
[335364866,1724161845986,-500.0,0.00016712,2]
[335364867,1724161845995,-500.0,0.00016712,2]
[335364868,1724161846005,-500.0,0.00016712,2]
[335364869,1724161846014,-500.0,0.00016712,2]
[335364870,1724161846023,-500.0,0.00016712,2]
[335364871,1724161846032,-500.0,0.00016712,2]
[335364872,1724161846041,-500.0,0.00016712,2]
[335364873,1724161846051,-359.56584915,0.00016712,2]
[335364874,1724161846060,-500.0,0.00016712,2]
[335364875,1724161846070,-246.23511805,0.00016712,2]
[335364876,1724161846079,-527.08628866,0.00016712,2]
[335364877,1724161846090,-673.69,0.00016712,2]
[335364878,1724161846099,-1298.07,0.00016712,2]
[335364879,1724161846109,-500.0,0.00016712,2]
[335364880,1724161846118,-500.0,0.00016712,2]
[335364881,1724161846128,-565.7674898,0.00016712,2]
[335364882,1724161846137,-500.0,0.00016712,2]
[335364883,1724161846147,-701.65,0.00016712,2]
[335364884,1724161846156,-500.0,0.00016712,2]
[335364885,1724161846165,-500.0,0.00016712,2]
[335364886,1724161846174,-509.82945483,0.00016712,2]
[335364887,1724161846184,-475.35192086,0.00016712,2]
[335364889,1724161846194,-500.0,0.00016712,2]
[335364891,1724161846203,-500.0,0.00016712,2]
[335364892,1724161846212,-500.0,0.00016712,2]
[335364893,1724161846222,-500.0,0.00016712,2]
[335364894,1724161846231,-500.0,0.00016712,2]
[335364895,1724161846240,-500.0,0.00016712,2]
[335364896,1724161846250,-500.0,0.00016712,2]
[335364897,1724161846259,-507.19159305,0.00016712,2]
[335364898,1724161846268,-500.0,0.00016712,2]
[335364899,1724161846278,-500.0,0.00016712,2]
[335364900,1724161846288,-500.0,0.00016712,2]
[335364901,1724161846298,-500.95705276,0.00016712,2]
[335364902,1724161846307,-574.56123531,0.00016712,2]
[335364903,1724161846316,-500.0,0.00016712,2]
[335364904,1724161846326,-500.0,0.00016712,2]
[335364905,1724161846338,-545.45805345,0.00016712,2]
[335364906,1724161846347,-500.0,0.00016712,2]
[335364907,1724161846357,-500.0,0.00016712,2]
[335364908,1724161846369,-500.0,0.00016712,2]
[335364909,1724161846379,-500.0,0.00016712,2]
[335364910,1724161846389,-500.0,0.00016712,2]
[335364911,1724161846398,-500.0,0.00016712,2]
[335364912,1724161846409,-500.0,0.00016712,2]
[335364913,1724161846422,-500.0,0.00016712,2]
[335364914,1724161846431,-509.51740179,0.00016712,2]
[335364915,1724161846441,-500.0,0.00016712,2]
[335364916,1724161846451,-502.74099934,0.00016712,2]
[335364917,1724161846461,-500.0,0.00016712,2]
[335364918,1724161846470,-500.0,0.00016712,2]
[335364919,1724161846482,-500.0,0.00016712,2]
[335364920,1724161846494,-190.15122753,0.00016712,2]
[335364921,1724161846504,-500.0,0.00016712,2]
[335364922,1724161846514,-1000.0,0.00016712,2]
[335364923,1724161846523,-500.0,0.00016712,2]
[335364924,1724161846533,-500.0,0.00016712,2]
[335364925,1724161846543,-500.0,0.00016712,2]
[335364926,1724161846552,-500.0,0.00016712,2]
[335364927,1724161846561,-500.0,0.00016712,2]
[335364928,1724161846571,-500.0,0.00016712,2]
[335364929,1724161846580,-376.7327495,0.00016712,2]
[335364930,1724161846594,-500.0,0.00016712,2]
[335364931,1724161846604,-500.0,0.00016712,2]
[335364932,1724161846613,-554.10358249,0.00016712,2]
[335364933,1724161846623,-500.0,0.00016712,2]
[335364934,1724161846633,-500.0,0.00016712,2]
[335364935,1724161846642,-500.0,0.00016712,2]
[335364936,1724161846652,-500.0,0.00016712,2]
[335364937,1724161846663,-500.67244167,0.00016712,2]
[335364938,1724161846674,-500.0,0.00016712,2]
[335364939,1724161846685,-502.76661967,0.00016712,2]
[335364940,1724161846696,-500.0,0.00016712,2]
[335364941,1724161846705,-506.29955647,0.00016712,2]
[335364942,1724161846717,-501.3110504,0.00016712,2]
[335364943,1724161846727,-502.59095076,0.00016712,2]
[335364944,1724161846736,-500.0,0.00016712,2]
[335364945,1724161846747,-500.1932811,0.00016712,2]
[335364946,1724161846757,-500.0,0.00016712,2]
[335364947,1724161846768,-500.0,0.00016712,2]
[335364948,1724161846778,-500.0,0.00016712,2]
[335364949,1724161846788,-500.0,0.00016712,2]
[335364950,1724161846798,-500.0,0.00016712,2]
[335364951,1724161846807,-500.0,0.00016712,2]
[335364952,1724161846817,-500.0,0.00016712,2]
[335364953,1724161846827,-500.0,0.00016712,2]
[335364954,1724161846839,-509.38497931,0.00016712,2]
[335364955,1724161846848,-500.0,0.00016712,2]
[335364956,1724161846858,-1622.19,0.00016712,2]
[335364957,1724161846868,-523.27466402,0.00016712,2]
[335364958,1724161846878,-500.0,0.00016712,2]
[335364959,1724161846888,-500.0,0.00016712,2]
[335364960,1724161846898,-500.0,0.00016712,2]
[335364961,1724161846909,-504.46954326,0.00016712,2]
[335364962,1724161846919,-500.0,0.00016712,2]
[335364963,1724161846928,-500.0,0.00016712,2]
[335364964,1724161846938,-153.02501592,0.00016712,2]
[335364965,1724161846948,-500.0,0.00016712,2]
[335364966,1724161846957,-500.0,0.00016712,2]
[335364967,1724161846967,-500.0,0.00016712,2]
[335364968,1724161846976,-510.9339362,0.00016712,2]
[335364969,1724161846986,-500.0,0.00016712,2]
[335364970,1724161846996,-500.0,0.00016712,2]
[335364971,1724161847008,-500.0,0.00016712,2]
[335364972,1724161847020,-500.0,0.00016712,2]
[335364973,1724161847030,-500.0,0.00016712,2]
[335364974,1724161847039,-469.50897845,0.00016712,2]
[335364975,1724161847049,-500.0,0.00016712,2]
[335364976,1724161847058,-500.0,0.00016712,2]
[335364977,1724161847069,-500.0,0.00016712,2]
[335364978,1724161847079,-500.0,0.00016712,2]
[335364979,1724161847092,-500.0,0.00016712,2]
[335364980,1724161847106,-150.0,0.00016712,2]
[335364981,1724161847115,-502.67082172,0.00016712,2]
[335364982,1724161847126,-575.35760915,0.00016712,2]
[335364983,1724161847137,-500.0,0.00016712,2]
[335364984,1724161847148,-500.0,0.00016712,2]
[335364985,1724161847158,-2000.0,0.00016712,2]
[335364986,1724161847167,-500.0,0.00016712,2]
[335364987,1724161847178,-866.07,0.00016712,2]
[335364988,1724161847188,-500.0,0.00016712,2]
[335364989,1724161847199,-500.0,0.00016712,2]
[335364990,1724161847209,-500.0,0.00016712,2]
[335364991,1724161847220,-500.0,0.00016712,2]
[335364992,1724161847230,-500.0,0.00016712,2]
[335364993,1724161847240,-512.41169414,0.00016712,2]
[335364994,1724161847250,-500.0,0.00016712,2]
[335364995,1724161847262,-504.03964716,0.00016712,2]
[335364996,1724161847273,-1117.96,0.00016712,2]
[335364997,1724161847285,-500.0,0.00016712,2]
[335364998,1724161847295,-835.11,0.00016712,2]
[335364999,1724161847307,-410.26667269,0.00016712,2]
[335365000,1724161847318,-500.0,0.00016712,2]
[335365001,1724161847327,-500.0,0.00016712,2]
[335365002,1724161847338,-500.0,0.00016712,2]
[335365003,1724161847347,-500.0,0.00016712,2]
[335365004,1724161847356,-500.0,0.00016712,2]
[335365005,1724161847366,-500.0,0.00016712,2]
[335365006,1724161847376,-500.0,0.00016712,2]
[335365007,1724161847386,-474.35425249,0.00016712,2]
[335365008,1724161847397,-500.0,0.00016712,2]
[335365009,1724161847406,-500.0,0.00016712,2]
[335365010,1724161847420,-500.0,0.00016712,2]
[335365011,1724161847430,-500.0,0.00016712,2]
[335365012,1724161847442,-500.0,0.00016712,2]
[335365013,1724161847452,-500.0,0.00016712,2]
[335365014,1724161847463,-500.0,0.00016712,2]
[335365015,1724161847473,-500.0,0.00016712,2]
[335365016,1724161847486,-500.0,0.00016712,2]
[335365017,1724161847496,-200.0,0.00016712,2]
[335365018,1724161847508,-674.76,0.00016712,2]
[335365019,1724161847520,-500.0,0.00016712,2]
[335365020,1724161847530,-500.0,0.00016712,2]
[335365021,1724161847540,-500.0,0.00016712,2]
[335365022,1724161847550,-500.0,0.00016712,2]
[335365023,1724161847561,-515.07755243,0.00016712,2]
[335365024,1724161847570,-500.0,0.00016712,2]
[335365025,1724161847581,-508.78933289,0.00016712,2]
[335365026,1724161847592,-500.0,0.00016712,2]
[335365027,1724161847603,-500.0,0.00016712,2]
[335365028,1724161847614,-500.0,0.00016712,2]
[335365029,1724161847624,-500.0,0.00016712,2]
[335365030,1724161847634,-519.63962823,0.00016712,2]
[335365031,1724161847643,-1595.9,0.00016712,2]
[335365032,1724161847652,-500.0,0.00016712,2]
[335365033,1724161847662,-500.0,0.00016712,2]
[335365034,1724161847671,-531.59146802,0.00016712,2]
[335365035,1724161847680,-500.0,0.00016712,2]
[335365036,1724161847690,-506.36308037,0.00016712,2]
[335365037,1724161847699,-288.91432232,0.00016712,2]
[335365038,1724161847709,-500.0,0.00016712,2]
[335365039,1724161847720,-500.0,0.00016712,2]
[335365040,1724161847730,-500.0,0.00016712,2]
[335365041,1724161847739,-500.0,0.00016712,2]
[335365042,1724161847750,-267.91929941,0.00016712,2]
[335365043,1724161847761,-446.69391484,0.00016712,2]
[335365044,1724161847771,-500.0,0.00016712,2]
[335365045,1724161847779,-572.16363907,0.00016712,2]
[335365046,1724161847788,-478.46707984,0.00016712,2]
[335365047,1724161847797,-500.0,0.00016712,2]
[335365048,1724161847806,-500.0,0.00016712,2]
[335365049,1724161847816,-500.0,0.00016712,2]
[335365050,1724161847825,-500.0,0.00016712,2]
[335365051,1724161847835,-984.07,0.00016712,2]
[335365052,1724161847844,-500.0,0.00016712,2]
[335365053,1724161847853,-500.0,0.00016712,2]
[335365054,1724161847863,-500.0,0.00016712,2]
[335365055,1724161847874,-510.93716268,0.00016712,2]
[335365056,1724161847884,-1040.91,0.00016712,2]
[335365057,1724161847893,-500.0,0.00016712,2]
[335365058,1724161847904,-500.0,0.00016712,2]
[335365059,1724161847913,-500.0,0.00016712,2]
[335365060,1724161847923,-388.06328781,0.00016712,2]
[335365061,1724161847932,-503.33604521,0.00016712,2]
[335365062,1724161847943,-500.0,0.00016712,2]
[335365063,1724161847953,-500.0,0.00016712,2]
[335365064,1724161847964,-500.0,0.00016712,2]
[335365065,1724161847975,-483.43006335,0.00016712,2]
[335365066,1724161847985,-500.0,0.00016712,2]
[335365067,1724161847996,-500.0,0.00016712,2]
[335365068,1724161848006,-320.77073065,0.00016712,2]
[335365069,1724161848016,-515.71552506,0.00016712,2]
[335365070,1724161848026,-500.0,0.00016712,2]
[335365071,1724161848036,-500.0,0.00016712,2]
[335365072,1724161848047,-500.0,0.00016712,2]
[335365073,1724161848058,-507.26650594,0.00016712,2]
[335365074,1724161848067,-500.0,0.00016712,2]
[335365075,1724161848078,-500.0,0.00016712,2]
[335365076,1724161848090,-500.0,0.00016712,2]
[335365077,1724161848101,-505.34351822,0.00016712,2]
[335365078,1724161848111,-605.38962245,0.00016712,2]
[335365079,1724161848122,-500.0,0.00016712,2]
[335365080,1724161848131,-500.0,0.00016712,2]
[335365081,1724161848141,-500.0,0.00016712,2]
[335365082,1724161848150,-500.0,0.00016712,2]
[335365083,1724161848160,-500.0,0.00016712,2]
[335365084,1724161848170,-500.0,0.00016712,2]
[335365085,1724161848181,-570.39,0.00016712,2]
[335365086,1724161848190,-500.0,0.00016712,2]
[335365087,1724161848201,-503.67518267,0.00016712,2]
[335365088,1724161848210,-500.0,0.00016712,2]
[335365089,1724161848220,-500.0,0.00016712,2]
[335365090,1724161848231,-500.0,0.00016712,2]
[335365091,1724161848241,-500.0,0.00016712,2]
[335365092,1724161848251,-500.0,0.00016712,2]
[335365093,1724161848260,-500.0,0.00016712,2]
[335365094,1724161848270,-539.07605786,0.00016712,2]
[335365095,1724161848279,-500.0,0.00016712,2]
[335365096,1724161848289,-500.0,0.00016712,2]
[335365097,1724161848298,-504.5727443,0.00016712,2]
[335365098,1724161848308,-500.0,0.00016712,2]
[335365099,1724161848318,-419.05684619,0.00016712,2]
[335365100,1724161848328,-500.0,0.00016712,2]
[335365101,1724161848341,-2745.62,0.00016712,2]
[335365102,1724161848353,-500.0,0.00016712,2]
[335365103,1724161848363,-513.38270038,0.00016712,2]
[335365104,1724161848374,-500.0,0.00016712,2]
[335365105,1724161848385,-500.0,0.00016712,2]
[335365106,1724161848396,-500.0,0.00016712,2]
[335365107,1724161848406,-500.0,0.00016712,2]
[335365108,1724161848420,-637.76510282,0.00016712,2]
[335365109,1724161848431,-500.0,0.00016712,2]
[335365110,1724161848441,-389.51866418,0.00016712,2]
[335365111,1724161848450,-500.0,0.00016712,2]
[335365112,1724161848462,-500.0,0.00016712,2]
[335365113,1724161848474,-399.86996551,0.00016712,2]
[335365114,1724161848486,-500.0,0.00016712,2]
[335365115,1724161848498,-537.96894705,0.00016712,2]
[335365116,1724161848509,-500.0,0.00016712,2]
[335365117,1724161848521,-503.27008819,0.00016712,2]
[335365118,1724161848531,-500.0,0.00016712,2]
[335365119,1724161848543,-504.32658863,0.00016712,2]
[335365120,1724161848552,-500.0,0.00016712,2]
[335365121,1724161848561,-500.0,0.00016712,2]
[335365122,1724161848571,-629.08,0.00016712,2]
[335365123,1724161848582,-500.0,0.00016712,2]
[335365124,1724161848593,-273.89970954,0.00016712,2]
[335365125,1724161848602,-500.0,0.00016712,2]
[335365126,1724161848612,-500.0,0.00016712,2]
[335365127,1724161848623,-500.0,0.00016712,2]
[335365128,1724161848632,-500.0,0.00016712,2]
[335365129,1724161848644,-500.0,0.00016712,2]
[335365130,1724161848759,-500.0,0.00016712,2]
[335365131,1724161848768,-500.0,0.00016712,2]
[335365132,1724161848778,-500.0,0.00016712,2]
[335365133,1724161848789,-500.0,0.00016712,2]
[335365134,1724161848798,-500.0,0.00016712,2]
[335365135,1724161848808,-500.0,0.00016712,2]
[335365136,1724161848817,-500.44561053,0.00016712,2]
[335365137,1724161848826,-500.0,0.00016712,2]
[335365138,1724161848837,-500.0,0.00016712,2]
[335365139,1724161848846,-500.0,0.00016712,2]
[335365140,1724161848855,-500.0,0.00016712,2]
[335365141,1724161848865,-500.0,0.00016712,2]
[335365142,1724161848875,-629.97,0.00016712,2]
[335365143,1724161848885,-500.0,0.00016712,2]
[335365144,1724161848895,-500.0,0.00016712,2]
[335365145,1724161848904,-500.0,0.00016712,2]
[335365146,1724161848914,-500.0,0.00016712,2]
[335365147,1724161848923,-292.84703741,0.00016712,2]
[335365148,1724161848933,-500.0,0.00016712,2]
[335365149,1724161848943,-597.73726369,0.00016712,2]
[335365150,1724161848952,-500.0,0.00016712,2]
[335365151,1724161848964,-503.47722121,0.00016712,2]
[335365152,1724161848974,-500.0,0.00016712,2]
[335365153,1724161848985,-504.02818564,0.00016712,2]
[335365154,1724161848995,-500.0,0.00016712,2]
[335365155,1724161849005,-500.0,0.00016712,2]
[335365156,1724161849016,-500.0,0.00016712,2]
[335365157,1724161849026,-4747.67,0.00016712,2]
[335365158,1724161849036,-500.0,0.00016712,2]
[335365159,1724161849047,-780.17,0.00016712,2]
[335365160,1724161849059,-530.0,0.00016853,2]
[335365161,1724161849069,-226.7,0.00016853,2]
[335365162,1724161849080,-5117.28593988,0.00016905,2]
[335365163,1724161849091,-500.0,0.00016986,2]
[335365164,1724161849100,-500.0,0.00016986,2]
[335365165,1724161849110,-500.0,0.00016986,2]
[335365166,1724161849120,-500.0,0.00016986,2]
[335365167,1724161849130,-500.0,0.00016986,2]
[335365168,1724161849140,-500.0,0.00016986,2]
[335365169,1724161849149,-500.0,0.00016986,2]
[335365170,1724161849159,-500.0,0.00016986,2]
[335365171,1724161849169,-500.0,0.00016986,2]
[335365172,1724161849179,-500.0,0.00016986,2]
[335365173,1724161849189,-500.0,0.00016986,2]
[335365174,1724161849199,-500.0,0.00016986,2]
[335365175,1724161849210,-500.0,0.00016986,2]
[335365176,1724161849219,-406.91929311,0.00016986,2]
[335365177,1724161849229,-500.0,0.00016986,2]
[335365178,1724161849239,-500.0,0.00016986,2]
[335365179,1724161849251,-500.0,0.00016986,2]
[335365180,1724161849261,-500.0,0.00016986,2]
[335365181,1724161849271,-500.0,0.00016986,2]
[335365182,1724161849282,-500.0,0.00016986,2]
[335365183,1724161849291,-500.0,0.00016986,2]
[335365184,1724161849301,-500.0,0.00016986,2]
[335365185,1724161849310,-673.69,0.00016986,2]
[335365186,1724161849320,-1298.07,0.00016986,2]
[335365187,1724161849329,-500.0,0.00016986,2]
[335365188,1724161849339,-500.0,0.00016986,2]
[335365189,1724161849349,-701.65,0.00016986,2]
[335365190,1724161849359,-500.0,0.00016986,2]
[335365191,1724161849369,-500.0,0.00016986,2]
[335365192,1724161849378,-270.70089951,0.00016986,2]
[335365193,1724161849389,-153.08246531,0.00016986,2]
[335365194,1724161849399,-500.0,0.00016986,2]
[335365195,1724161849409,-500.0,0.00016986,2]
[335365196,1724161849423,-500.0,0.00016986,2]
[335365197,1724161849434,-507.00026044,0.00016986,2]
[335365198,1724161849444,-500.0,0.00016986,2]
[335365199,1724161849454,-500.0,0.00016986,2]
[335365200,1724161849465,-510.49795534,0.00016986,2]
[335365201,1724161849476,-500.0,0.00016986,2]
[335365202,1724161849487,-500.0,0.00016986,2]
[335365203,1724161849499,-500.0,0.00016986,2]
[335365204,1724161849508,-505.91622374,0.00016986,2]
[335365205,1724161849518,-500.0,0.00016986,2]
[335365206,1724161849529,-500.0,0.00016986,2]
[335365207,1724161849538,-506.60644559,0.00016986,2]
[335365208,1724161849549,-500.0,0.00016986,2]
[335365209,1724161849559,-500.0,0.00016986,2]
[335365210,1724161849571,-500.0,0.00016986,2]
[335365211,1724161849580,-500.0,0.00016986,2]
[335365212,1724161849594,-500.0,0.00016986,2]
[335365213,1724161849604,-486.47939309,0.00016986,2]
[335365214,1724161849613,-277.72756456,0.00016986,2]
[335365215,1724161849623,-1000.0,0.00016986,2]
[335365216,1724161849634,-640.5656478,0.00016986,2]
[335365217,1724161849645,-500.0,0.00016986,2]
[335365218,1724161849654,-505.72707702,0.00016986,2]
[335365219,1724161849664,-500.0,0.00016986,2]
[335365220,1724161849674,-500.0,0.00016986,2]
[335365221,1724161849685,-500.0,0.00016986,2]
[335365222,1724161849695,-500.0,0.00016986,2]
[335365223,1724161849706,-500.0,0.00016986,2]
[335365224,1724161849716,-500.0,0.00016986,2]
[335365225,1724161849727,-500.0,0.00016986,2]
[335365226,1724161849737,-500.0,0.00016986,2]
[335365227,1724161849749,-501.86255384,0.00016986,2]
[335365228,1724161849760,-500.0,0.00016986,2]
[335365229,1724161849772,-500.0,0.00016986,2]
[335365230,1724161849782,-503.96616619,0.00016986,2]
[335365231,1724161849793,-500.0,0.00016986,2]
[335365232,1724161849803,-500.0,0.00016986,2]
[335365233,1724161849813,-500.0,0.00016986,2]
[335365234,1724161849824,-500.0,0.00016986,2]
[335365235,1724161849835,-500.0,0.00016986,2]
[335365236,1724161849844,-500.0,0.00016986,2]
[335365237,1724161849854,-264.55254378,0.00016986,2]
[335365238,1724161849865,-500.0,0.00016986,2]